fUST/lending_fUST_20251102
["ID","MTS","AMOUNT","RATE_DAILY","PERIOD"]
[392838132,1762027833787,-666.32,0.00043533,30]
[392838133,1762027833796,-555.26,0.00043533,30]
[392838134,1762027833805,-462.72,0.00043533,30]
[392838135,1762027833815,-385.6,0.00043533,30]
[392838136,1762027833826,-321.33,0.00043533,30]
[392838137,1762027833835,-267.78,0.00043533,30]
[392838138,1762027833843,-223.15,0.00043533,30]
[392838139,1762027833854,-185.96,0.00043533,30]
[392838140,1762027833865,-154.96,0.00043533,30]
[392838141,1762027833874,-774.84,0.00043533,30]
[392838142,1762027833884,-3118.8543883,0.00043533,3]
[392838143,1762027833894,-35691.7557066,0.00043533,3]
[392838144,1762027833903,-198.00119,0.00043543,120]
[392838145,1762027833913,-151.0,0.00043543,2]
[392838146,1762027833921,-151.0,0.00043543,2]
[392838147,1762027833931,-269.163685,0.00043543,2]
[392838148,1762027833941,-506406.23407046,0.00043543,2]
[392838149,1762027833955,-80427.49514628,0.00043543,2]
[392838150,1762027833966,-1810.54911172,0.00043543,2]
[392838158,1762027838444,-307.8364998,0.00026927,2]
[392838176,1762027840706,-262.85932009,0.00026927,2]
[392838177,1762027840715,-500.0,0.00026927,2]
[392838178,1762027840725,-151.0,0.00043543,120]
[392838179,1762027840734,-9744.14067991,0.00043543,2]
[392838180,1762027840745,-23322.6392556,0.00043543,2]
[392838279,1762027846501,-22787.89700464,0.00043543,2]
[392838282,1762027846742,-16824.11186084,0.00043543,2]
[392838283,1762027846752,-3701.0,0.00043543,2]
[392838328,1762028372697,169.082007,0.00018578,2]
[392838331,1762028522859,1630.73745706,0.00024897,2]
[392838332,1762028522881,3369.26254294,0.00024897,2]
[392838333,1762028530922,5000.0,0.00024897,2]
[392838350,1762028885964,421.56476089,0.00010618,2]
[392838352,1762028918582,526.7736983,0.00018,5]
[392838409,1762029031712,-900.0,0.00025469,3]
[392838411,1762029031722,-156.58188,0.00032509,20]
[392838413,1762029031734,-230.76978922,0.00034547,4]
[392838416,1762029031743,-341.26223218,0.00035541,2]
[392838418,1762029031752,-965.02270425,0.00035541,2]
[392838543,1762029037310,150.0,0.00020641,2]
[392838555,1762029037705,150.0,0.00022518,2]
[392838580,1762029039834,-174.80520441,0.00035516,2]
[392838582,1762029039844,-174.89256334,0.00035516,2]
[392838584,1762029039853,-34.97729575,0.00035541,2]
[392838586,1762029039862,-165.32013016,0.00035707,2]
[392838588,1762029039875,-169.082007,0.00037155,2]
[392838590,1762029039885,-347.0875711,0.00037406,2]
[392838592,1762029039894,-204.41267762,0.00037506,2]
[392838594,1762029039903,-2841.9898085,0.00037952,2]
[392838596,1762029039913,-1500.0,0.00038159,3]
[392838598,1762029039922,-806.6665486,0.00038159,3]
[392838600,1762029039931,-291.39,0.000382,2]
[392838601,1762029039940,-999.0,0.00038246,2]
[392838603,1762029039952,-291.39,0.000386,2]
[392838605,1762029039961,-395.41923866,0.00039,2]
[392838607,1762029039972,-703.70839962,0.00039,2]
[392838609,1762029039983,-2473.81489366,0.00039,2]
[392838611,1762029039992,-291.39,0.00039,2]
[392838613,1762029040001,-151.0,0.00039376,2]
[392838615,1762029040010,-151.0,0.00039376,2]
[392838617,1762029040019,-151.0,0.00039376,2]
[392838619,1762029040029,-151.0,0.00039376,2]
[392838621,1762029040038,-151.0,0.00039376,2]
[392838623,1762029040047,-151.0,0.00039376,2]
[392838625,1762029040057,-151.0,0.00039376,2]
[392838627,1762029040066,-151.0,0.00039376,2]
[392838629,1762029040075,-151.0,0.00039376,2]
[392838631,1762029040085,-151.0,0.00039376,2]
[392838633,1762029040094,-151.0,0.00039376,2]
[392838634,1762029040103,-151.0,0.00039376,2]
[392838636,1762029040113,-151.0,0.00039376,2]
[392838637,1762029040122,-151.0,0.00039376,2]
[392838638,1762029040133,-151.0,0.00039376,2]
[392838639,1762029040142,-151.0,0.00039376,2]
[392838640,1762029040151,-151.0,0.00039376,2]
[392838641,1762029040165,-151.0,0.00039376,2]
[392838642,1762029040174,-151.0,0.00039376,2]
[392838643,1762029040184,-151.0,0.00039376,2]
[392838644,1762029040194,-291.39,0.000394,2]
[392838645,1762029040204,-291.39,0.000399,2]
[392838646,1762029040214,-403.98447456,0.00040086,2]
[392838647,1762029040224,-500.0,0.0004014,8]
[392838648,1762029040235,-500.0,0.0004014,2]
[392838649,1762029040245,-291.39,0.000403,2]
[392838650,1762029040254,-291.39,0.000407,2]
[392838651,1762029040264,-291.39,0.000411,2]
[392838652,1762029040274,-492.56978986,0.00041404,2]
[392838653,1762029040284,-479.83778883,0.00041448,2]
[392838654,1762029040294,-852.19191297,0.00041448,2]
[392838655,1762029040303,-291.39,0.000416,2]
[392838656,1762029040313,-291.39,0.00042,2]
[392838657,1762029040323,-500.0,0.0004275,60]
[392838658,1762029040333,-500.0,0.00042988,2]
[392838659,1762029040343,-3943.85,0.00042998,3]
[392838660,1762029040353,-157.0,0.00043,90]
[392838661,1762029040363,-563.41064666,0.00043198,2]
[392838662,1762029040373,-2077.16,0.00043199,38]
[392838663,1762029040383,-1778.31574046,0.00043372,28]
[392838664,1762029040393,-3618.87412516,0.00043417,2]
[392838665,1762029040404,-179.84,0.00043462,2]
[392838666,1762029040414,-500.0,0.00043471,2]
[392838667,1762029040424,-700.7783506,0.00043472,2]
[392838668,1762029040434,-22037.506266,0.00043472,2]
[392838669,1762029040444,-1641.0747825,0.00043472,2]
[392838670,1762029040454,-556.9382837,0.00043489,3]
[392838671,1762029040463,-786.40127124,0.00043489,3]
[392838672,1762029040507,-594.0,0.00043489,3]
[392838673,1762029040519,-321.50465592,0.00043489,3]
[392838685,1762029043445,-403.98447456,0.00040083,2]
[392838686,1762029043456,-5436.44521416,0.00043489,3]
[392838687,1762029043467,-352.7,0.00043489,30]
[392838688,1762029043477,-293.91,0.00043489,30]
[392838689,1762029043489,-875.39,0.00043489,10]
[392838690,1762029043499,-122411.4964242,0.00043499,2]
[392838691,1762029043621,-161.69363386,0.00029028,2]
[392838692,1762029043631,-25474.80303282,0.00043499,2]
[392838703,1762029046048,-161.85532749,0.00040066,7]
[392838704,1762029046059,-491.81,0.00043489,30]
[392838705,1762029046068,-1283.15467251,0.00043499,2]
[392838706,1762029046080,-288.74,0.00043499,2]
[392838722,1762029480242,181.47,0.00016244,5]
[392838725,1762029630792,5000.0,0.00025,2]
[392838726,1762029639297,3570.20154081,0.00025,2]
[392838727,1762029639320,1429.79845919,0.00025,2]
[392838728,1762029647836,5000.0,0.00025,2]
[392838729,1762029655534,1600.69012418,0.00025,2]
[392838730,1762029663929,1969.52141663,0.00025,2]
[392838731,1762029663954,3030.47858337,0.00025,2]
[392838732,1762029672411,5000.0,0.00025,2]
[392838733,1762029687527,1969.53141663,0.00025,2]
[392838734,1762029687553,2952.42019202,0.00025,2]
[392838748,1762029930257,5000.0,0.00025,2]
[392838749,1762029937964,1141.80034382,0.00025,2]
[392838750,1762029953411,905.78946416,0.00025,2]
[392838751,1762029953435,3548.99722308,0.00025,2]
[392838780,1762030231945,-312.0,0.00025205,2]
[392838817,1762030237828,-267.82802454,0.00025205,2]
[392838818,1762030237838,-150.0,0.00025205,2]
[392838819,1762030237847,-133.07197546,0.000253,2]
[392838820,1762030237858,-366.92802454,0.000253,2]
[392838821,1762030237867,-321.08430873,0.00026,2]
[392838822,1762030237876,-392.28903135,0.00026396,2]
[392838823,1762030237885,-177.0,0.00027205,2]
[392838824,1762030237896,-303.5163836,0.00029028,2]
[392838825,1762030237904,-204.0,0.00029205,2]
[392838826,1762030237913,-398.63594376,0.00029333,2]
[392838828,1762030237922,-170.052256,0.00029705,20]
[392838829,1762030237931,-400.0,0.00030889,2]
[392838830,1762030237940,-1773.19580004,0.0003089,2]
[392838879,1762030240141,-519.30264622,0.0003089,2]
[392838881,1762030240151,-500.0,0.00030891,2]
[392838883,1762030240160,-500.0,0.00030891,2]
[392838885,1762030240169,-166.27911914,0.00030891,2]
[392838887,1762030240178,-214.75540959,0.00030891,2]
[392838889,1762030240187,-275.4643988,0.00030891,2]
[392838891,1762030240196,-30000.03,0.00030892,2]
[392838893,1762030240205,-1638.7043531,0.00030992,2]
[392838895,1762030240214,-170.052256,0.00031107,20]
[392838897,1762030240222,-500.0,0.00031204,2]
[392838899,1762030240231,-156.91408294,0.00031204,8]
[392838901,1762030240240,-231.0,0.00031205,2]
[392838902,1762030240250,-500.0,0.00031525,5]
[392838904,1762030240259,-500.0,0.000317,5]
[392838906,1762030240268,-500.0,0.000317,2]
[392838909,1762030240278,-631.11917145,0.00031849,2]
[392838910,1762030240288,-500.0,0.00032,5]
[392838912,1762030240299,-1000.0,0.00032248,5]
[392838914,1762030240308,-151.0,0.0003247,2]
[392838917,1762030240317,-151.0,0.0003247,2]
[392838918,1762030240327,-151.0,0.0003247,2]
[392838921,1762030240336,-151.0,0.0003247,2]
[392838923,1762030240346,-151.0,0.0003247,2]
[392838925,1762030240356,-151.0,0.0003247,2]
[392838927,1762030240365,-151.0,0.0003247,2]
[392838929,1762030240374,-151.0,0.0003247,2]
[392838931,1762030240383,-151.0,0.0003247,2]
[392838932,1762030240392,-151.0,0.0003247,2]
[392838935,1762030240403,-151.0,0.0003247,2]
[392838937,1762030240413,-151.0,0.0003247,2]
[392838938,1762030240424,-151.0,0.0003247,2]
[392838940,1762030240434,-151.0,0.0003247,2]
[392838943,1762030240446,-151.0,0.0003247,2]
[392838945,1762030240462,-151.0,0.0003247,2]
[392838948,1762030240474,-151.0,0.0003247,2]
[392838950,1762030240486,-151.0,0.0003247,2]
[392838952,1762030240498,-151.0,0.0003247,2]
[392838954,1762030240510,-151.0,0.0003247,2]
[392838956,1762030240520,-170.052256,0.00032509,20]
[392838958,1762030240531,-479.57586115,0.00032548,5]
[392838960,1762030240541,-160.0,0.00032668,2]
[392838962,1762030240553,-1513.25927861,0.00032796,5]
[392838964,1762030240564,-500.0,0.00032822,5]
[392838965,1762030240575,-500.0,0.00033096,5]
[392838967,1762030240587,-258.0,0.00033205,120]
[392838969,1762030240598,-500.0,0.00033214,2]
[392838970,1762030240613,-398.63594376,0.00033215,3]
[392838972,1762030240625,-260.0,0.00033216,2]
[392838974,1762030240636,-560.0,0.00033261,2]
[392838976,1762030240647,-500.0,0.0003337,5]
[392838977,1762030240658,-403.98447456,0.00034319,2]
[392838978,1762030240668,-160.0,0.00034319,2]
[392838979,1762030240681,-423.45,0.00034473,5]
[392838980,1762030240694,-303.5163836,0.00034547,4]
[392838981,1762030240705,-153.0,0.00035,120]
[392838982,1762030240716,-285.0,0.00035205,120]
[392838983,1762030240726,-544.7098825,0.00035499,2]
[392838984,1762030240737,-530.63015832,0.00035536,2]
[392838985,1762030240749,-942.39916118,0.00035536,2]
[392838986,1762030240760,-285.3787701,0.00035767,2]
[392838987,1762030240771,-686.0,0.00035815,2]
[392838988,1762030240781,-500.0,0.00036986,8]
[392838989,1762030240792,-500.0,0.00036986,8]
[392838990,1762030240803,-243.97573137,0.00036986,8]
[392839007,1762030242872,-256.02426863,0.00036986,8]
[392839008,1762030242883,-500.0,0.00036986,8]
[392839009,1762030242894,-500.0,0.00036986,8]
[392839010,1762030242906,-500.0,0.00036986,8]
[392839011,1762030242919,-1652.63659401,0.00036986,3]
[392839057,1762030246228,-1698.0254269,0.00036986,3]
[392839060,1762030246240,-1097.62797909,0.00036986,3]
[392839062,1762030246250,-36.17202091,0.00036986,3]
[392839067,1762030312715,150.0,0.00019684,2]
[392839068,1762030313095,150.0,0.00021474,2]
[392839069,1762030313497,150.0,0.00023263,2]
[392839070,1762030503596,5000.0,0.00025,2]
[392839071,1762030525892,1001.01277692,0.00025,2]
[392839072,1762030525916,3998.98722308,0.00025,2]
[392839073,1762030531888,189.0,0.00030211,120]
[392839074,1762030554164,15000.0,0.0003814,60]
[392839075,1762030565952,15000.0,0.0003814,60]
[392839081,1762030669574,404.090376,0.00013699,2]
[392839082,1762030669777,404.090376,0.00020187,2]
[392839084,1762030715001,306.79335909,0.0002499,2]
[392839085,1762030747946,4886.04866583,0.00025,2]
[392839086,1762030747968,113.95133417,0.00025,2]
[392839088,1762030870028,5000.0,0.00025,2]
[392839089,1762030892698,4886.05866583,0.00025,2]
[392839090,1762030892720,113.94133417,0.00025,2]
[392839091,1762030914956,5000.0,0.00025,2]
[392839092,1762030937590,4184.19532648,0.00025,2]
[392839117,1762031030058,150.0,0.00021402,2]
[392839118,1762031030371,150.0,0.00023348,2]
[392839119,1762031110372,151.0,0.00024985,2]
[392839120,1762031110981,151.0,0.00024985,2]
[392839121,1762031111606,99.87333935,0.00024985,2]
[392839122,1762031111633,51.12666065,0.00024985,2]
[392839123,1762031112260,151.0,0.00024985,2]
[392839124,1762031112884,151.0,0.00024985,2]
[392839125,1762031113773,151.0,0.00024985,2]
[392839126,1762031114391,151.0,0.00024985,2]
[392839127,1762031115016,151.0,0.00024985,2]
[392839128,1762031115626,151.0,0.00024985,2]
[392839129,1762031116240,151.0,0.00024985,2]
[392839130,1762031116927,151.0,0.00024985,2]
[392839131,1762031117551,151.0,0.00024985,2]
[392839132,1762031118159,151.0,0.00024985,2]
[392839133,1762031118765,151.0,0.00024985,2]
[392839134,1762031119382,151.0,0.00024985,2]
[392839135,1762031119998,151.0,0.00024985,2]
[392839136,1762031120638,151.0,0.00024985,2]
[392839137,1762031121226,151.0,0.00024985,2]
[392839138,1762031121856,151.0,0.00024985,2]
[392839139,1762031122484,151.0,0.00024985,2]
[392839141,1762031190903,513.5391568,0.00025,2]
[392839142,1762031199273,5000.0,0.00025,2]
[392839143,1762031207264,3882.4708432,0.00025,2]
[392839144,1762031207290,1117.5291568,0.00025,2]
[392839145,1762031221351,150.0,1.04e-06,2]
[392839146,1762031222323,5000.0,0.00025,2]
[392839147,1762031222388,150.0,1.04e-06,2]
[392839148,1762031223435,150.0,1.04e-06,2]
[392839149,1762031224534,150.0,1.04e-06,2]
[392839150,1762031225616,150.0,1.04e-06,2]
[392839151,1762031228858,150.0,1.04e-06,2]
[392839152,1762031230070,2982.4808432,0.00025,2]
[392839153,1762031230092,2017.5191568,0.00025,2]
[392839154,1762031245842,5000.0,0.00025,2]
[392839155,1762031253904,2982.4908432,0.00025,2]
[392839156,1762031253926,2017.5091568,0.00025,2]
[392839157,1762031269039,5000.0,0.00025,2]
[392839158,1762031277550,2982.5008432,0.00025,2]
[392839159,1762031277572,2017.4991568,0.00025,2]
[392839161,1762031409290,151.12849967,0.00038131,60]
[392839284,1762031437968,-13000.0,0.00025,2]
[392839285,1762031437978,-462.0,0.00025,2]
[392839286,1762031437987,-300.0,0.00025,2]
[392839287,1762031437997,-300.0,0.00025,2]
[392839288,1762031438006,-300.0,0.00025,2]
[392839289,1762031438016,-300.0,0.00025,2]
[392839290,1762031438026,-300.0,0.00025,2]
[392839291,1762031438036,-150.0,0.00025026,2]
[392839292,1762031438046,-404.090376,0.00026676,2]
[392839293,1762031438055,-177.0,0.00027026,2]
[392839295,1762031438065,-204.0,0.00029026,2]
[392839296,1762031438074,-152.13739768,0.00029028,2]
[392839298,1762031438084,-231.0,0.00031026,2]
[392839300,1762031438094,-900.8619243,0.00032002,2]
[392839302,1762031438104,-431.491465,0.00032168,2]
[392839304,1762031438114,-258.0,0.00033026,120]
[392839306,1762031438125,-404.090376,0.00033165,2]
[392839308,1762031438135,-568.79148999,0.00033651,2]
[392839309,1762031438145,-847.48560052,0.00033651,2]
[392839310,1762031438161,-1425.40519349,0.00033651,2]
[392839311,1762031438171,-171.17644146,0.0003375,2]
[392839312,1762031438180,-684.70576584,0.0003375,2]
[392839313,1762031438194,-1540.58797315,0.0003375,2]
[392839314,1762031438204,-678.12462606,0.0003375,2]
[392839332,1762031440079,-480.79525141,0.0003375,2]
[392839333,1762031440190,-1579.90318591,0.0003375,2]
[392839334,1762031440200,-4279.41103653,0.0003375,2]
[392839335,1762031440209,-2005.93614046,0.00034634,2]
[392839336,1762031440218,-500.0,0.00034733,7]
[392839337,1762031440228,-500.0,0.00034733,7]
[392839338,1762031440236,-185.9320553,0.00034733,7]
[392839339,1762031440246,-271.73831318,0.00034733,7]
[392839340,1762031440255,-500.0,0.00034733,2]
[392839341,1762031440266,-500.0,0.00034733,7]
[392839342,1762031440388,-500.0,0.00034733,7]
[392839343,1762031440397,-198.4988433,0.00034733,7]
[392839344,1762031440407,-500.0,0.00034733,2]
[392839345,1762031440416,-500.0,0.00034733,7]
[392839346,1762031440425,-234.72667749,0.00034733,2]
[392839347,1762031440435,-500.0,0.00034733,7]
[392839348,1762031440444,-500.0,0.00034733,7]
[392839349,1762031440454,-232.36985841,0.00034733,7]
[392839350,1762031440463,-1099.2395992,0.00034734,2]
[392839351,1762031440472,-151.0,0.00034893,2]
[392839352,1762031440482,-151.0,0.00034893,2]
[392839353,1762031440491,-151.0,0.00034893,2]
[392839354,1762031440500,-151.0,0.00034893,2]
[392839355,1762031440509,-151.0,0.00034893,2]
[392839356,1762031440519,-151.0,0.00034893,2]
[392839357,1762031440528,-151.0,0.00034893,2]
[392839358,1762031440537,-151.0,0.00034893,2]
[392839359,1762031440546,-151.0,0.00034893,2]
[392839360,1762031440555,-151.0,0.00034893,2]
[392839361,1762031440564,-151.0,0.00034893,2]
[392839362,1762031440573,-151.0,0.00034893,2]
[392839363,1762031440583,-151.0,0.00034893,2]
[392839364,1762031440591,-151.0,0.00034893,2]
[392839365,1762031440600,-151.0,0.00034893,2]
[392839366,1762031440610,-151.0,0.00034893,2]
[392839367,1762031440619,-151.0,0.00034893,2]
[392839368,1762031440628,-151.0,0.00034893,2]
[392839369,1762031440637,-151.0,0.00034893,2]
[392839370,1762031440646,-151.0,0.00034893,2]
[392839371,1762031440655,-1406.4388052,0.00034914,2]
[392839372,1762031440666,-3613.4413482,0.00034914,2]
[392839373,1762031440676,-220.6402783,0.00034914,2]
[392839374,1762031440686,-1510.1128574,0.00034914,2]
[392839375,1762031440695,-33456.23110339,0.00034914,2]
[392839376,1762031440732,-2634.87002361,0.00034914,2]
[392839377,1762031440742,-1099.2395992,0.00034916,2]
[392839378,1762031440751,-285.0,0.00035026,120]
[392839379,1762031440760,-1099.2395992,0.00035139,2]
[392839380,1762031440769,-2018.35813118,0.00035292,2]
[392839381,1762031440779,-1099.23959921,0.00035364,2]
[392839382,1762031440789,-2018.35813118,0.00035506,2]
[392839383,1762031440798,-500.0,0.00035753,5]
[392839384,1762031440809,-500.0,0.00035753,5]
[392839385,1762031440818,-500.0,0.00035753,5]
[392839386,1762031440828,-331.0,0.00036117,2]
[392839387,1762031440837,-686.31575092,0.00036886,2]
[392839388,1762031440846,-500.0,0.00036965,15]
[392839389,1762031440856,-265.83801452,0.00036965,15]
[392839390,1762031440865,-1748.47,0.00036966,10]
[392839391,1762031440874,-1457.06,0.00036966,10]
[392839392,1762031440883,-7489.35166049,0.00036976,3]
[392839393,1762031440895,-4780.51244661,0.00036976,3]
[392839394,1762031440904,-448.26288064,0.00036976,3]
[392839395,1762031440913,-353.80650974,0.00036986,8]
[392839430,1762031444015,-145.44644226,0.00036986,8]
[392839431,1762031444024,-500.0,0.00036986,8]
[392839432,1762031444034,-500.0,0.00036986,8]
[392839433,1762031444043,-500.0,0.00036986,8]
[392839434,1762031444051,-500.0,0.00036986,8]
[392839435,1762031444061,-146.67355774,0.00036986,8]
[392839436,1762031444128,-353.32644226,0.00036986,8]
[392839437,1762031444137,-428.59,0.00036986,8]
[392839438,1762031444146,-500.0,0.00036986,8]
[392839439,1762031444156,-500.0,0.00036986,8]
[392839440,1762031444166,-338.56548958,0.00036986,8]
[392839441,1762031444175,-500.0,0.00036986,2]
[392839442,1762031444184,-500.0,0.00036986,2]
[392839443,1762031444199,-287.47684671,0.00036986,8]
[392839444,1762031444209,-500.0,0.00036986,8]
[392839445,1762031444217,-500.0,0.00036986,8]
[392839446,1762031444226,-500.0,0.00036986,8]
[392839447,1762031444237,-500.0,0.00036986,8]
[392839448,1762031444246,-593.50228375,0.00036986,8]
[392839449,1762031444255,-1000.0,0.00036986,2]
[392839450,1762031444265,-1000.0,0.00036986,2]
[392839451,1762031444274,-1000.0,0.00036986,2]
[392839452,1762031444283,-500.0,0.00036986,8]
[392839453,1762031444293,-500.0,0.00036986,8]
[392839454,1762031444302,-500.0,0.00036986,8]
[392839455,1762031444311,-586.36,0.00036986,8]
[392839456,1762031444320,-561.98,0.00036986,8]
[392839457,1762031444329,-561.98,0.00036986,8]
[392839458,1762031444338,-561.98,0.00036986,8]
[392839459,1762031444347,-4261.44,0.00036986,3]
[392839460,1762031444356,-4261.44,0.00036986,3]
[392839461,1762031444365,-4261.44,0.00036986,3]
[392839462,1762031444374,-4261.44,0.00036986,3]
[392839463,1762031444383,-4261.44,0.00036986,3]
[392839464,1762031444392,-500.0,0.00036986,8]
[392839465,1762031444401,-500.0,0.00036986,8]
[392839466,1762031444410,-499.99,0.00036986,8]
[392839467,1762031444419,-500.0,0.00036986,8]
[392839468,1762031444428,-500.0,0.00036986,8]
[392839469,1762031444436,-500.0,0.00036986,8]
[392839470,1762031444445,-151.0,0.00036986,8]
[392839471,1762031444454,-151.0,0.00036986,8]
[392839472,1762031444463,-500.0,0.00036986,8]
[392839474,1762031444472,-500.0,0.00036986,8]
[392839475,1762031444481,-500.0,0.00036986,8]
[392839476,1762031444490,-500.0,0.00036986,8]
[392839477,1762031444499,-500.0,0.00036986,8]
[392839478,1762031444507,-500.0,0.00036986,8]
[392839479,1762031444516,-500.0,0.00036986,8]
[392839480,1762031444525,-500.0,0.00036986,8]
[392839481,1762031444534,-1000.0,0.00036986,2]
[392839482,1762031444543,-1000.0,0.00036986,2]
[392839483,1762031444552,-524.09,0.00036986,8]
[392839484,1762031444561,-524.09,0.00036986,8]
[392839485,1762031444570,-524.09,0.00036986,8]
[392839486,1762031444579,-524.09,0.00036986,8]
[392839487,1762031444588,-524.09,0.00036986,8]
[392839488,1762031444597,-524.09,0.00036986,8]
[392839489,1762031444606,-524.09,0.00036986,8]
[392839490,1762031444615,-524.09,0.00036986,8]
[392839491,1762031444625,-524.09,0.00036986,8]
[392839492,1762031444634,-500.0,0.00036986,8]
[392839493,1762031444643,-500.0,0.00036986,8]
[392839494,1762031444654,-500.0,0.00036986,8]
[392839495,1762031444667,-362.42224486,0.00036986,8]
[392839496,1762031444676,-151.0,0.00036986,8]
[392839497,1762031444686,-2390.64,0.00036986,8]
[392839498,1762031444696,-2390.64,0.00036986,8]
[392839499,1762031444706,-2390.64,0.00036986,8]
[392839500,1762031444715,-500.0,0.00036986,8]
[392839501,1762031444725,-500.0,0.00036986,8]
[392839502,1762031444735,-500.0,0.00036986,8]
[392839503,1762031444744,-500.0,0.00036986,8]
[392839504,1762031444753,-575.2,0.00036986,8]
[392839505,1762031444763,-725.05,0.00036986,2]
[392839506,1762031444772,-725.05,0.00036986,2]
[392839507,1762031444782,-725.05,0.00036986,2]
[392839508,1762031444791,-500.0,0.00036986,8]
[392839509,1762031444801,-568.89742287,0.00036986,8]
[392839510,1762031444810,-2092.52,0.00036986,8]
[392839511,1762031444819,-2092.52,0.00036986,8]
[392839512,1762031444828,-2092.52,0.00036986,8]
[392839513,1762031444837,-312.0,0.00037026,120]
[392839514,1762031444845,-151.0,0.00037041,8]
[392839515,1762031444854,-151.0,0.00037041,8]
[392839516,1762031444863,-198.0,0.00037096,8]
[392839517,1762031444873,-151.0,0.00037096,8]
[392839518,1762031444882,-398.63594376,0.00037098,4]
[392839519,1762031444892,-151.0,0.00037139,2]
[392839520,1762031444900,-151.0,0.0003715,8]
[392839521,1762031444910,-4261.44,0.00037204,3]
[392839522,1762031444919,-500.0,0.00037204,8]
[392839523,1762031444930,-151.0,0.00037205,8]
[392839524,1762031444939,-197.58276153,0.0003726,8]
[392839525,1762031444950,-500.0,0.00037286,8]
[392839526,1762031444959,-500.0,0.00037286,8]
[392839527,1762031444968,-500.0,0.00037286,8]
[392839528,1762031444978,-2390.64,0.00037286,8]
[392839529,1762031444987,-2092.52,0.00037286,8]
[392839530,1762031444996,-153.0,0.000373,120]
[392839531,1762031445006,-151.0,0.0003795,42]
[392839532,1762031445016,-151.0,0.0003795,42]
[392839533,1762031445025,-500.0,0.00038099,8]
[392839534,1762031445034,-500.0,0.00038099,8]
[392839535,1762031445044,-1000.0,0.00038099,2]
[392839536,1762031445053,-1000.0,0.00038099,2]
[392839537,1762031445062,-1000.0,0.00038099,2]
[392839538,1762031445071,-1052.06200516,0.00038099,2]
[392839539,1762031445080,-500.0,0.00038099,8]
[392839540,1762031445089,-524.09,0.00038099,8]
[392839541,1762031445099,-2390.64,0.00038099,8]
[392839542,1762031445108,-487.146056,0.00038099,31]
[392839543,1762031445117,-487.146056,0.00038099,31]
[392839544,1762031445125,-487.146056,0.00038099,31]
[392839545,1762031445135,-487.146056,0.00038099,31]
[392839546,1762031445144,-170.940346,0.00038099,31]
[392839547,1762031445152,-195.238872,0.00038099,31]
[392839548,1762031445162,-904.636134,0.00038099,31]
[392839549,1762031445171,-904.636134,0.00038099,31]
[392839550,1762031445180,-151.0,0.00038099,31]
[392839551,1762031445191,-2092.52,0.00038099,8]
[392839552,1762031445200,-904.636134,0.00038099,31]
[392839553,1762031445209,-151.0,0.00038099,31]
[392839554,1762031445219,-904.636134,0.00038099,31]
[392839555,1762031445227,-231.590831,0.00038099,31]
[392839556,1762031445236,-154.665798,0.000381,31]
[392839557,1762031445245,-151.0,0.000381,31]
[392839558,1762031445254,-151.0,0.000381,31]
[392839559,1762031445263,-162.373467,0.000381,31]